[Event "November 21 Early 2023"]
[Site "https://www.chess.com"]
[Date "2023.11.21"]
[Round "5"]
[White "Skiadopoulos, Nikolaos"]
[Black "Golubenko, Valentina"]
[Result "1-0"]
[Board "198"]
[TimeControl "180+1"]
[WhiteFideId "4200772"]
[BlackFideId "4501993"]
[WhiteElo "2022"]
[BlackElo "2126"]
[WhiteTeam "GRE"]
[BlackTeam "CRO"]
[WhiteClock "0:00:09"]
[BlackClock "0:00:04"]

1. b4 {[%clk 0:02:59]}  e6 {[%clk 0:02:57]} 2. Bb2 {[%clk 0:02:57]}  d5 {[%clk 0:02:57]} 3. Nf3 {[%clk 0:02:55]}  Nf6 {[%clk 0:02:57]} 4. b5 {[%clk 0:02:54]}  Be7 {[%clk 0:02:56]} 5. e3 {[%clk 0:02:53]}  c5 {[%clk 0:02:56]} 6. Be2 {[%clk 0:02:45]}  O-O {[%clk 0:02:54]} 7. O-O {[%clk 0:02:42]}  a6 {[%clk 0:02:47]} 8. a4 {[%clk 0:02:41]}  axb5 {[%clk 0:02:46]} 9. axb5 {[%clk 0:02:41]}  Rxa1 {[%clk 0:02:46]} 10. Bxa1 {[%clk 0:02:41]}  Nbd7 {[%clk 0:02:35]} 11. c4 {[%clk 0:02:38]}  b6 {[%clk 0:02:31]} 12. d4 {[%clk 0:02:33]}  dxc4 {[%clk 0:02:23]} 13. Bxc4 {[%clk 0:02:30]}  Bb7 {[%clk 0:02:23]} 14. Nbd2 {[%clk 0:02:26]}  Qc7 {[%clk 0:02:16]} 15. Be2 {[%clk 0:01:55]}  Nd5 {[%clk 0:02:11]} 16. dxc5 {[%clk 0:01:50]}  Nxc5 {[%clk 0:02:06]} 17. Qc2 {[%clk 0:01:40]}  Rc8 {[%clk 0:01:50]} 18. Be5 {[%clk 0:01:29]}  Qd8 {[%clk 0:01:44]} 19. Qb2 {[%clk 0:01:25]}  Bf6 {[%clk 0:01:22]} 20. Rd1 {[%clk 0:01:23]}  Na4 {[%clk 0:01:01]} 21. Qd4 {[%clk 0:01:12]}  Nac3 {[%clk 0:00:51]} 22. Kf1 {[%clk 0:00:49]}  Nxe2 {[%clk 0:00:38]} 23. Kxe2 {[%clk 0:00:47]}  Nc3+ {[%clk 0:00:34]} 24. Ke1 {[%clk 0:00:43]}  Nxd1 {[%clk 0:00:29]} 25. Kxd1 {[%clk 0:00:43]}  Bxe5 {[%clk 0:00:22]} 26. Nxe5 {[%clk 0:00:29]}  Qxd4 {[%clk 0:00:19]} 27. exd4 {[%clk 0:00:28]}  Bxg2 {[%clk 0:00:18]} 28. f3 {[%clk 0:00:27]}  Bh3 {[%clk 0:00:18]} 29. Nc6 {[%clk 0:00:24]}  Bf5 {[%clk 0:00:17]} 30. Ne7+ {[%clk 0:00:22]}  Kf8 {[%clk 0:00:17]} 31. Nxc8 {[%clk 0:00:23]}  Ke8 {[%clk 0:00:16]} 32. Nxb6 {[%clk 0:00:23]}  Kd8 {[%clk 0:00:17]} 33. Nbc4 {[%clk 0:00:23]}  Kc7 {[%clk 0:00:17]} 34. Ne4 {[%clk 0:00:22]}  Bh3 {[%clk 0:00:15]} 35. Kd2 {[%clk 0:00:21]}  f5 {[%clk 0:00:15]} 36. Nc5 {[%clk 0:00:20]}  Bf1 {[%clk 0:00:15]} 37. Ne3 {[%clk 0:00:15]}  Bxb5 {[%clk 0:00:14]} 38. Nxe6+ {[%clk 0:00:16]}  Kd6 {[%clk 0:00:13]} 39. Nxg7 {[%clk 0:00:17]}  f4 {[%clk 0:00:13]} 40. Ng2 {[%clk 0:00:15]}  Kd5 {[%clk 0:00:13]} 41. Nxf4+ {[%clk 0:00:13]}  Kxd4 {[%clk 0:00:13]} 42. Nge6+ {[%clk 0:00:11]}  Ke5 {[%clk 0:00:14]} 43. Ke3 {[%clk 0:00:11]}  Bd7 {[%clk 0:00:14]} 44. Nd4 {[%clk 0:00:11]}  Kf6 {[%clk 0:00:12]} 45. Nd5+ {[%clk 0:00:10]}  Ke5 {[%clk 0:00:11]} 46. Nf4 {[%clk 0:00:09]}  Kf6 {[%clk 0:00:11]} 47. Nh5+ {[%clk 0:00:09]}  Kg5 {[%clk 0:00:11]} 48. Ng3 {[%clk 0:00:10]}  Kf6 {[%clk 0:00:11]} 49. f4 {[%clk 0:00:10]}  Bc8 {[%clk 0:00:10]} 50. Ne4+ {[%clk 0:00:10]}  Kg7 {[%clk 0:00:09]} 51. f5 {[%clk 0:00:10]}  Kf7 {[%clk 0:00:10]} 52. Kf4 {[%clk 0:00:11]}  Ke7 {[%clk 0:00:09]} 53. Ke5 {[%clk 0:00:11]}  Kf7 {[%clk 0:00:09]} 54. Nd6+ {[%clk 0:00:11]}  Kg7 {[%clk 0:00:08]} 55. Nxc8 {[%clk 0:00:12]}  Kf8 {[%clk 0:00:08]} 56. Nd6 {[%clk 0:00:11]}  Kg7 {[%clk 0:00:08]} 57. Ne6+ {[%clk 0:00:11]}  Kh8 {[%clk 0:00:07]} 58. f6 {[%clk 0:00:10]}  Kg8 {[%clk 0:00:04]} 59. f7+ {[%clk 0:00:09]} 1-0

[Event "November 21 Early 2023"]
[Site "https://www.chess.com"]
[Date "2023.11.21"]
[Round "5"]
[White "dumbernugget"]
[Black "Estrada Nieto, Julian"]
[Result "1/2-1/2"]
[Board "199"]
[TimeControl "180+1"]
[BlackFideId "5101018"]
[WhiteElo "1836"]
[BlackElo "2161"]
[BlackTeam "ESP"]
[WhiteClock "0:00:20"]
[BlackClock "0:00:03"]

1. d4 {[%clk 0:03:00]}  Nf6 {[%clk 0:02:57]} 2. c4 {[%clk 0:03:00]}  e6 {[%clk 0:02:58]} 3. Nc3 {[%clk 0:03:00]}  c5 {[%clk 0:02:58]} 4. d5 {[%clk 0:02:59]}  exd5 {[%clk 0:02:58]} 5. cxd5 {[%clk 0:02:59]}  d6 {[%clk 0:02:59]} 6. e4 {[%clk 0:02:59]}  g6 {[%clk 0:02:59]} 7. f4 {[%clk 0:02:59]}  Bg7 {[%clk 0:02:59]} 8. Bb5+ {[%clk 0:02:59]}  Nfd7 {[%clk 0:02:59]} 9. Nf3 {[%clk 0:02:52]}  O-O {[%clk 0:02:56]} 10. O-O {[%clk 0:02:51]}  Re8 {[%clk 0:02:53]} 11. Re1 {[%clk 0:02:51]}  a6 {[%clk 0:02:43]} 12. Bf1 {[%clk 0:02:48]}  b5 {[%clk 0:02:39]} 13. Qc2 {[%clk 0:02:40]}  Qc7 {[%clk 0:02:34]} 14. a4 {[%clk 0:02:37]}  b4 {[%clk 0:02:33]} 15. Nd1 {[%clk 0:02:38]}  a5 {[%clk 0:02:27]} 16. Ne3 {[%clk 0:02:36]}  Ba6 {[%clk 0:02:27]} 17. Nc4 {[%clk 0:02:35]}  Nb6 {[%clk 0:02:18]} 18. Nxb6 {[%clk 0:02:32]}  Qxb6 {[%clk 0:02:17]} 19. Bc4 {[%clk 0:02:28]}  Nd7 {[%clk 0:02:13]} 20. Kh1 {[%clk 0:02:26]}  Bxc4 {[%clk 0:02:11]} 21. Qxc4 {[%clk 0:02:26]}  Re7 {[%clk 0:02:05]} 22. Re2 {[%clk 0:02:21]}  Qa6 {[%clk 0:02:04]} 23. Qxa6 {[%clk 0:02:18]}  Rxa6 {[%clk 0:02:04]} 24. Rb1 {[%clk 0:02:18]}  f5 {[%clk 0:01:44]} 25. Ng5 {[%clk 0:02:06]}  Nf6 {[%clk 0:01:23]} 26. e5 {[%clk 0:01:58]}  dxe5 {[%clk 0:01:13]} 27. Ne6 {[%clk 0:01:16]}  Nxd5 {[%clk 0:00:52]} 28. Nxc5 {[%clk 0:01:12]}  Rc6 {[%clk 0:00:52]} 29. Nb3 {[%clk 0:01:10]}  Ra6 {[%clk 0:00:23]} 30. fxe5 {[%clk 0:01:06]}  Rxe5 {[%clk 0:00:23]} 31. Rxe5 {[%clk 0:01:05]}  Bxe5 {[%clk 0:00:23]} 32. Bg5 {[%clk 0:01:02]}  Nb6 {[%clk 0:00:21]} 33. Nc5 {[%clk 0:00:58]}  Ra8 {[%clk 0:00:19]} 34. b3 {[%clk 0:00:54]}  Nd5 {[%clk 0:00:17]} 35. Rd1 {[%clk 0:00:47]}  Nc3 {[%clk 0:00:09]} 36. Rd8+ {[%clk 0:00:46]}  Rxd8 {[%clk 0:00:08]} 37. Bxd8 {[%clk 0:00:47]}  Bd4 {[%clk 0:00:05]} 38. Nd3 {[%clk 0:00:44]}  Ne4 {[%clk 0:00:02]} 39. Bxa5 {[%clk 0:00:42]}  Nd2 {[%clk 0:00:02]} 40. Bxb4 {[%clk 0:00:39]}  Nxb3 {[%clk 0:00:03]} 41. a5 {[%clk 0:00:37]}  Kf7 {[%clk 0:00:03]} 42. a6 {[%clk 0:00:31]}  Ke6 {[%clk 0:00:03]} 43. Nf4+ {[%clk 0:00:25]}  Kd7 {[%clk 0:00:02]} 44. Nd5 {[%clk 0:00:17]}  Ba7 {[%clk 0:00:02]} 45. Nf6+ {[%clk 0:00:17]}  Kc6 {[%clk 0:00:03]} 46. Nxh7 {[%clk 0:00:17]}  Kb5 {[%clk 0:00:03]} 47. Bc3 {[%clk 0:00:17]}  Kxa6 {[%clk 0:00:04]} 48. Nf8 {[%clk 0:00:17]}  g5 {[%clk 0:00:04]} 49. Bd2 {[%clk 0:00:17]}  g4 {[%clk 0:00:04]} 50. g3 {[%clk 0:00:18]}  Nxd2 {[%clk 0:00:04]} 51. Kg2 {[%clk 0:00:18]}  Be3 {[%clk 0:00:03]} 52. Ng6 {[%clk 0:00:18]}  Ne4 {[%clk 0:00:03]} 53. Ne7 {[%clk 0:00:18]}  Nd6 {[%clk 0:00:03]} 54. Ng6 {[%clk 0:00:18]}  Bd4 {[%clk 0:00:02]} 55. h3 {[%clk 0:00:18]}  Bf6 {[%clk 0:00:02]} 56. hxg4 {[%clk 0:00:18]}  fxg4 {[%clk 0:00:03]} 57. Nf4 {[%clk 0:00:18]}  Kb6 {[%clk 0:00:03]} 58. Nh5 {[%clk 0:00:18]}  Be7 {[%clk 0:00:02]} 59. Nf4 {[%clk 0:00:19]}  Kc6 {[%clk 0:00:02]} 60. Ng6 {[%clk 0:00:19]}  Kd7 {[%clk 0:00:02]} 61. Ne5+ {[%clk 0:00:19]}  Ke6 {[%clk 0:00:02]} 62. Nxg4 {[%clk 0:00:20]}  Nf5 {[%clk 0:00:02]} 63. Kf3 {[%clk 0:00:19]}  Bd6 {[%clk 0:00:02]} 64. Ne3 {[%clk 0:00:19]}  Nxg3 {[%clk 0:00:02]} 65. Kf2 {[%clk 0:00:19]}  Nh5 {[%clk 0:00:02]} 66. Kf3 {[%clk 0:00:19]}  Nf6 {[%clk 0:00:03]} 67. Ke2 {[%clk 0:00:19]}  Bc5 {[%clk 0:00:03]} 68. Kf3 {[%clk 0:00:20]}  Ke5 {[%clk 0:00:03]} 69. Ng4+ {[%clk 0:00:20]}  Kf5 {[%clk 0:00:03]} 70. Nxf6 {[%clk 0:00:20]} 1/2-1/2

[Event "November 21 Early 2023"]
[Site "https://www.chess.com"]
[Date "2023.11.21"]
[Round "5"]
[White "Burovic00"]
[Black "Dwilewicz, Katarzyna"]
[Result "1-0"]
[Board "201"]
[TimeControl "180+1"]
[BlackFideId "1148486"]
[WhiteElo "2215"]
[BlackElo "2098"]
[BlackTeam "POL"]
[WhiteClock "0:00:08"]
[BlackClock "0:00:00"]

1. e4 {[%clk 0:02:58]}  c6 {[%clk 0:02:58]} 2. d3 {[%clk 0:02:59]}  d5 {[%clk 0:02:57]} 3. Nd2 {[%clk 0:02:59]}  e5 {[%clk 0:02:55]} 4. Ngf3 {[%clk 0:02:59]}  Bd6 {[%clk 0:02:54]} 5. g3 {[%clk 0:02:59]}  Nf6 {[%clk 0:02:52]} 6. Bg2 {[%clk 0:02:59]}  O-O {[%clk 0:02:52]} 7. O-O {[%clk 0:02:59]}  Re8 {[%clk 0:02:53]} 8. Re1 {[%clk 0:02:58]}  h6 {[%clk 0:02:52]} 9. b3 {[%clk 0:02:58]}  Bg4 {[%clk 0:02:47]} 10. Bb2 {[%clk 0:02:57]}  Nbd7 {[%clk 0:02:48]} 11. h3 {[%clk 0:02:54]}  Bh5 {[%clk 0:02:45]} 12. a3 {[%clk 0:02:47]}  a5 {[%clk 0:02:43]} 13. Qe2 {[%clk 0:02:19]}  Qc7 {[%clk 0:02:32]} 14. Qf1 {[%clk 0:02:18]}  Bg6 {[%clk 0:02:24]} 15. Nh4 {[%clk 0:02:12]}  Bh7 {[%clk 0:02:23]} 16. Nf5 {[%clk 0:02:02]}  Bxf5 {[%clk 0:02:21]} 17. exf5 {[%clk 0:02:03]}  Re7 {[%clk 0:02:00]} 18. Rad1 {[%clk 0:01:31]}  Rae8 {[%clk 0:01:54]} 19. Qe2 {[%clk 0:01:13]}  b6 {[%clk 0:01:39]} 20. g4 {[%clk 0:00:56]}  e4 {[%clk 0:01:30]} 21. dxe4 {[%clk 0:00:56]}  dxe4 {[%clk 0:01:24]} 22. Nc4 {[%clk 0:00:55]}  Bf4 {[%clk 0:01:18]} 23. Ne3 {[%clk 0:00:38]}  Ne5 {[%clk 0:01:14]} 24. Kh1 {[%clk 0:00:30]}  Ned7 {[%clk 0:00:51]} 25. Nc4 {[%clk 0:00:27]}  b5 {[%clk 0:00:49]} 26. Ne3 {[%clk 0:00:25]}  Be5 {[%clk 0:00:47]} 27. c3 {[%clk 0:00:22]}  Nc5 {[%clk 0:00:45]} 28. Qc2 {[%clk 0:00:20]}  Bf4 {[%clk 0:00:43]} 29. b4 {[%clk 0:00:16]}  Nd3 {[%clk 0:00:41]} 30. Rf1 {[%clk 0:00:14]}  a4 {[%clk 0:00:37]} 31. Bc1 {[%clk 0:00:13]}  Be5 {[%clk 0:00:29]} 32. c4 {[%clk 0:00:14]}  Bd4 {[%clk 0:00:21]} 33. cxb5 {[%clk 0:00:14]}  cxb5 {[%clk 0:00:22]} 34. Qxc7 {[%clk 0:00:13]}  Rxc7 {[%clk 0:00:22]} 35. Bd2 {[%clk 0:00:11]}  Bb2 {[%clk 0:00:22]} 36. Kg1 {[%clk 0:00:07]}  Bxa3 {[%clk 0:00:21]} 37. Rb1 {[%clk 0:00:08]}  Bb2 {[%clk 0:00:20]} 38. Rfd1 {[%clk 0:00:08]}  a3 {[%clk 0:00:20]} 39. Bf1 {[%clk 0:00:05]}  a2 {[%clk 0:00:21]} 40. Ra1 {[%clk 0:00:05]}  Bxa1 {[%clk 0:00:19]} 41. Rxa1 {[%clk 0:00:06]}  Rd8 {[%clk 0:00:19]} 42. Rxa2 {[%clk 0:00:06]}  Ne5 {[%clk 0:00:17]} 43. Be2 {[%clk 0:00:05]}  Nd5 {[%clk 0:00:16]} 44. Kg2 {[%clk 0:00:05]}  Nf4+ {[%clk 0:00:15]} 45. Kf1 {[%clk 0:00:05]}  Nxe2 {[%clk 0:00:16]} 46. Kxe2 {[%clk 0:00:06]}  Nc4 {[%clk 0:00:16]} 47. Nxc4 {[%clk 0:00:05]}  bxc4 {[%clk 0:00:16]} 48. Rc2 {[%clk 0:00:05]}  Rd3 {[%clk 0:00:12]} 49. Bc3 {[%clk 0:00:05]}  Ra7 {[%clk 0:00:10]} 50. Bd2 {[%clk 0:00:04]}  c3 {[%clk 0:00:09]} 51. Rxc3 {[%clk 0:00:04]}  Rxc3 {[%clk 0:00:08]} 52. Bxc3 {[%clk 0:00:05]}  Rb7 {[%clk 0:00:06]} 53. Kd2 {[%clk 0:00:05]}  Kf8 {[%clk 0:00:05]} 54. Ke3 {[%clk 0:00:05]}  g6 {[%clk 0:00:06]} 55. Kxe4 {[%clk 0:00:06]}  Ke8 {[%clk 0:00:05]} 56. fxg6 {[%clk 0:00:05]}  fxg6 {[%clk 0:00:05]} 57. f4 {[%clk 0:00:06]}  Re7+ {[%clk 0:00:05]} 58. Be5 {[%clk 0:00:06]}  Kd7 {[%clk 0:00:05]} 59. Kd5 {[%clk 0:00:06]}  Re8 {[%clk 0:00:05]} 60. f5 {[%clk 0:00:06]}  gxf5 {[%clk 0:00:05]} 61. gxf5 {[%clk 0:00:07]}  Rf8 {[%clk 0:00:04]} 62. f6 {[%clk 0:00:07]}  Rf7 {[%clk 0:00:05]} 63. b5 {[%clk 0:00:08]}  Rf8 {[%clk 0:00:05]} 64. b6 {[%clk 0:00:08]}  Ra8 {[%clk 0:00:01]} 65. b7 {[%clk 0:00:07]}  Ra5+ {[%clk 0:00:02]} 66. Ke4 {[%clk 0:00:08]}  Rb5 {[%clk 0:00:00]} 67. b8=Q {[%clk 0:00:08]} 1-0

[Event "November 21 Early 2023"]
[Site "https://www.chess.com"]
[Date "2023.11.21"]
[Round "5"]
[White "missponyo10"]
[Black "KorolDimitriy75"]
[Result "0-1"]
[Board "202"]
[TimeControl "180+1"]
[WhiteElo "2177"]
[BlackElo "2323"]
[WhiteClock "0:01:08"]
[BlackClock "0:00:11"]

1. e4 {[%clk 0:03:00]}  c5 {[%clk 0:03:00]} 2. Nf3 {[%clk 0:03:00]}  d6 {[%clk 0:03:00]} 3. d4 {[%clk 0:03:00]}  cxd4 {[%clk 0:03:01]} 4. Nxd4 {[%clk 0:03:00]}  Nf6 {[%clk 0:03:01]} 5. Nc3 {[%clk 0:03:01]}  g6 {[%clk 0:03:02]} 6. f4 {[%clk 0:03:01]}  Nbd7 {[%clk 0:03:01]} 7. Nf3 {[%clk 0:03:01]}  Bg7 {[%clk 0:03:01]} 8. Bc4 {[%clk 0:03:01]}  O-O {[%clk 0:02:59]} 9. O-O {[%clk 0:03:01]}  b5 {[%clk 0:02:10]} 10. Bxb5 {[%clk 0:02:55]}  Nxe4 {[%clk 0:02:09]} 11. Nxe4 {[%clk 0:02:52]}  Qb6+ {[%clk 0:02:08]} 12. Kh1 {[%clk 0:02:53]}  Qxb5 {[%clk 0:02:09]} 13. c3 {[%clk 0:02:44]}  Ba6 {[%clk 0:01:56]} 14. Re1 {[%clk 0:02:40]}  Rfe8 {[%clk 0:01:52]} 15. a4 {[%clk 0:02:34]}  Qc6 {[%clk 0:01:38]} 16. Qc2 {[%clk 0:02:30]}  Rab8 {[%clk 0:01:25]} 17. Rb1 {[%clk 0:02:19]}  d5 {[%clk 0:01:20]} 18. Nf2 {[%clk 0:02:15]}  e6 {[%clk 0:01:20]} 19. Bd2 {[%clk 0:02:10]}  Rec8 {[%clk 0:01:15]} 20. b4 {[%clk 0:02:00]}  Bb7 {[%clk 0:00:59]} 21. Rec1 {[%clk 0:01:49]}  d4 {[%clk 0:00:40]} 22. Nd1 {[%clk 0:01:42]}  dxc3 {[%clk 0:00:34]} 23. Nxc3 {[%clk 0:01:30]}  Nb6 {[%clk 0:00:29]} 24. Qd1 {[%clk 0:01:27]}  Qd7 {[%clk 0:00:19]} 25. a5 {[%clk 0:01:25]}  Nc4 {[%clk 0:00:18]} 26. Rc2 {[%clk 0:01:13]}  Rd8 {[%clk 0:00:11]} 27. Be1 {[%clk 0:01:11]}  Qxd1 {[%clk 0:00:09]} 28. Nxd1 {[%clk 0:01:07]}  Na3 {[%clk 0:00:08]} 29. Rcc1 {[%clk 0:01:03]}  Nxb1 {[%clk 0:00:08]} 30. Rxb1 {[%clk 0:01:04]}  Bxf3 {[%clk 0:00:08]} 31. gxf3 {[%clk 0:01:05]}  Rd4 {[%clk 0:00:07]} 32. Bg3 {[%clk 0:01:02]}  Rdxb4 {[%clk 0:00:06]} 33. Rxb4 {[%clk 0:00:59]}  Rxb4 {[%clk 0:00:07]} 34. Ne3 {[%clk 0:00:58]}  Ra4 {[%clk 0:00:07]} 35. Be1 {[%clk 0:00:56]}  Ra1 {[%clk 0:00:07]} 36. Ng2 {[%clk 0:00:56]}  Bc3 {[%clk 0:00:06]} 37. Kg1 {[%clk 0:00:57]}  Bxe1 {[%clk 0:00:07]} 38. Kf1 {[%clk 0:00:57]}  Bxa5+ {[%clk 0:00:07]} 39. Ke2 {[%clk 0:00:58]}  Bb6 {[%clk 0:00:07]} 40. Kd3 {[%clk 0:00:58]}  Ra2 {[%clk 0:00:08]} 41. Ke4 {[%clk 0:00:58]}  Rxg2 {[%clk 0:00:08]} 42. Ke5 {[%clk 0:00:59]}  Rxh2 {[%clk 0:00:09]} 43. Kf6 {[%clk 0:01:00]}  Rf2 {[%clk 0:00:09]} 44. Ke7 {[%clk 0:01:00]}  Rxf3 {[%clk 0:00:09]} 45. Kd7 {[%clk 0:01:01]}  Rxf4 {[%clk 0:00:09]} 46. Ke8 {[%clk 0:01:02]}  Rf5 {[%clk 0:00:10]} 47. Ke7 {[%clk 0:01:03]}  h5 {[%clk 0:00:11]} 48. Kd7 {[%clk 0:01:04]}  h4 {[%clk 0:00:11]} 49. Ke8 {[%clk 0:01:05]}  h3 {[%clk 0:00:12]} 50. Ke7 {[%clk 0:01:06]}  h2 {[%clk 0:00:12]} 51. Kd7 {[%clk 0:01:07]}  h1=Q {[%clk 0:00:12]} 52. Ke8 {[%clk 0:01:08]}  Qc6+ {[%clk 0:00:12]} 53. Ke7 {[%clk 0:01:08]}  Bc5+ {[%clk 0:00:11]} 54. Kd8 {[%clk 0:01:08]}  Rd5# {[%clk 0:00:11]} 0-1

[Event "November 21 Early 2023"]
[Site "https://www.chess.com"]
[Date "2023.11.21"]
[Round "5"]
[White "Osiecki, Stanislaw"]
[Black "Goswami, Vedant"]
[Result "1-0"]
[Board "203"]
[TimeControl "180+1"]
[WhiteFideId "1102990"]
[BlackFideId "5003725"]
[WhiteElo "2048"]
[BlackElo "2011"]
[WhiteTeam "POL"]
[BlackTeam "IND"]
[WhiteClock "0:01:18"]
[BlackClock "0:00:00"]

1. e4 {[%clk 0:03:00]}  Nc6 {[%clk 0:02:58]} 2. d4 {[%clk 0:03:00]}  d5 {[%clk 0:02:57]} 3. e5 {[%clk 0:03:00]}  Bf5 {[%clk 0:02:56]} 4. c3 {[%clk 0:02:58]}  e6 {[%clk 0:02:55]} 5. Bd3 {[%clk 0:02:58]}  Bxd3 {[%clk 0:02:46]} 6. Qxd3 {[%clk 0:02:57]}  f5 {[%clk 0:02:36]} 7. exf6 {[%clk 0:02:50]}  Qxf6 {[%clk 0:02:35]} 8. Nf3 {[%clk 0:02:51]}  Bd6 {[%clk 0:02:35]} 9. O-O {[%clk 0:02:48]}  Nge7 {[%clk 0:02:31]} 10. Bg5 {[%clk 0:02:46]}  Qf5 {[%clk 0:02:29]} 11. Qxf5 {[%clk 0:02:41]}  Nxf5 {[%clk 0:02:28]} 12. Re1 {[%clk 0:02:40]}  Kd7 {[%clk 0:02:29]} 13. b4 {[%clk 0:02:37]}  h6 {[%clk 0:02:16]} 14. Bd2 {[%clk 0:02:33]}  Rae8 {[%clk 0:02:07]} 15. Na3 {[%clk 0:02:33]}  g5 {[%clk 0:02:07]} 16. h3 {[%clk 0:02:30]}  a6 {[%clk 0:01:59]} 17. Nc2 {[%clk 0:02:29]}  e5 {[%clk 0:01:48]} 18. Ne3 {[%clk 0:02:22]}  Nxe3 {[%clk 0:01:41]} 19. fxe3 {[%clk 0:02:19]}  e4 {[%clk 0:01:40]} 20. Nh2 {[%clk 0:02:19]}  Bxh2+ {[%clk 0:01:26]} 21. Kxh2 {[%clk 0:02:18]}  b5 {[%clk 0:01:25]} 22. a4 {[%clk 0:02:16]}  Rhf8 {[%clk 0:01:21]} 23. axb5 {[%clk 0:02:09]}  axb5 {[%clk 0:01:20]} 24. Rf1 {[%clk 0:02:08]}  Nd8 {[%clk 0:01:06]} 25. Kg3 {[%clk 0:01:54]}  Ne6 {[%clk 0:00:54]} 26. Rxf8 {[%clk 0:01:49]}  Rxf8 {[%clk 0:00:53]} 27. Ra5 {[%clk 0:01:38]}  Kc6 {[%clk 0:00:42]} 28. Ra6+ {[%clk 0:01:37]}  Kd7 {[%clk 0:00:41]} 29. Ra5 {[%clk 0:01:27]}  c6 {[%clk 0:00:37]} 30. Ra7+ {[%clk 0:01:26]}  Kd6 {[%clk 0:00:33]} 31. Kg4 {[%clk 0:01:23]}  Rf2 {[%clk 0:00:32]} 32. Be1 {[%clk 0:01:22]}  Rxg2+ {[%clk 0:00:31]} 33. Kh5 {[%clk 0:01:19]}  Rh2 {[%clk 0:00:00]} 34. Bg3+ {[%clk 0:01:18]} 1-0

[Event "November 21 Early 2023"]
[Site "https://www.chess.com"]
[Date "2023.11.21"]
[Round "5"]
[White "Seletsky, Grigory"]
[Black "Elbebiber"]
[Result "1-0"]
[Board "204"]
[TimeControl "180+1"]
[WhiteFideId "14112191"]
[WhiteElo "2482"]
[BlackElo "2136"]
[WhiteTeam "UKR"]
[WhiteClock "0:01:15"]
[BlackClock "0:00:00"]

1. b3 {[%clk 0:02:59]}  d5 {[%clk 0:02:53]} 2. Bb2 {[%clk 0:02:59]}  Bf5 {[%clk 0:02:48]} 3. e3 {[%clk 0:03:00]}  e6 {[%clk 0:02:41]} 4. Bd3 {[%clk 0:02:58]}  Bg6 {[%clk 0:02:32]} 5. f4 {[%clk 0:02:56]}  Nd7 {[%clk 0:02:24]} 6. Nf3 {[%clk 0:02:56]}  Ngf6 {[%clk 0:02:05]} 7. O-O {[%clk 0:02:53]}  Ne4 {[%clk 0:01:52]} 8. Ne5 {[%clk 0:02:51]}  Nxe5 {[%clk 0:01:48]} 9. fxe5 {[%clk 0:02:51]}  f5 {[%clk 0:01:12]} 10. exf6 {[%clk 0:02:47]}  Nxf6 {[%clk 0:01:11]} 11. Nc3 {[%clk 0:02:26]}  Bxd3 {[%clk 0:01:08]} 12. cxd3 {[%clk 0:02:24]}  Be7 {[%clk 0:01:06]} 13. d4 {[%clk 0:02:22]}  O-O {[%clk 0:01:03]} 14. Qe2 {[%clk 0:02:19]}  Rc8 {[%clk 0:00:53]} 15. Rac1 {[%clk 0:02:14]}  c6 {[%clk 0:00:52]} 16. Qd3 {[%clk 0:02:09]}  Qe8 {[%clk 0:00:47]} 17. Rf3 {[%clk 0:02:08]}  Qg6 {[%clk 0:00:33]} 18. Qxg6 {[%clk 0:02:06]}  hxg6 {[%clk 0:00:32]} 19. Rg3 {[%clk 0:02:05]}  Kh7 {[%clk 0:00:32]} 20. Rf1 {[%clk 0:02:05]}  Nh5 {[%clk 0:00:26]} 21. Rgf3 {[%clk 0:02:04]}  Rxf3 {[%clk 0:00:25]} 22. gxf3 {[%clk 0:02:03]}  Rf8 {[%clk 0:00:23]} 23. Na4 {[%clk 0:01:57]}  Nf6 {[%clk 0:00:21]} 24. Nc5 {[%clk 0:01:56]}  Bxc5 {[%clk 0:00:18]} 25. dxc5 {[%clk 0:01:56]}  Nd7 {[%clk 0:00:18]} 26. b4 {[%clk 0:01:52]}  e5 {[%clk 0:00:17]} 27. Kg2 {[%clk 0:01:49]}  g5 {[%clk 0:00:17]} 28. a3 {[%clk 0:01:46]}  Kg6 {[%clk 0:00:17]} 29. h3 {[%clk 0:01:41]}  Rf7 {[%clk 0:00:16]} 30. Bc3 {[%clk 0:01:30]}  a6 {[%clk 0:00:16]} 31. Rh1 {[%clk 0:01:27]}  Rf8 {[%clk 0:00:16]} 32. h4 {[%clk 0:01:27]}  gxh4 {[%clk 0:00:16]} 33. Rxh4 {[%clk 0:01:26]}  Kf7 {[%clk 0:00:13]} 34. d4 {[%clk 0:01:25]}  Ke6 {[%clk 0:00:09]} 35. Rg4 {[%clk 0:01:15]}  Rf7 {[%clk 0:00:00]} 36. Rg6+ {[%clk 0:01:15]} 1-0

[Event "November 21 Early 2023"]
[Site "https://www.chess.com"]
[Date "2023.11.21"]
[Round "5"]
[White "Fernandez Hernandez, Gerardo"]
[Black "RodokininEV"]
[Result "0-1"]
[Board "205"]
[TimeControl "180+1"]
[WhiteFideId "2207400"]
[WhiteElo "2115"]
[BlackElo "2516"]
[WhiteTeam "ESP"]
[WhiteClock "0:00:54"]
[BlackClock "0:01:31"]

1. e4 {[%clk 0:03:00]}  c5 {[%clk 0:02:58]} 2. d3 {[%clk 0:03:01]}  Nc6 {[%clk 0:02:56]} 3. g3 {[%clk 0:03:01]}  g6 {[%clk 0:02:51]} 4. Bg2 {[%clk 0:03:01]}  Bg7 {[%clk 0:02:50]} 5. f4 {[%clk 0:03:02]}  d6 {[%clk 0:02:49]} 6. Nf3 {[%clk 0:03:02]}  e6 {[%clk 0:02:47]} 7. O-O {[%clk 0:03:01]}  Nge7 {[%clk 0:02:48]} 8. c3 {[%clk 0:03:01]}  O-O {[%clk 0:02:45]} 9. Be3 {[%clk 0:03:02]}  Rb8 {[%clk 0:02:43]} 10. d4 {[%clk 0:03:02]}  b6 {[%clk 0:02:40]} 11. dxc5 {[%clk 0:03:01]}  bxc5 {[%clk 0:02:41]} 12. Qe2 {[%clk 0:02:55]}  Qb6 {[%clk 0:02:39]} 13. b3 {[%clk 0:02:25]}  Ba6 {[%clk 0:02:38]} 14. Qd2 {[%clk 0:02:19]}  Bxf1 {[%clk 0:02:37]} 15. Bxf1 {[%clk 0:02:20]}  Qa5 {[%clk 0:02:28]} 16. Qxd6 {[%clk 0:02:14]}  Rfd8 {[%clk 0:02:24]} 17. Qxc5 {[%clk 0:02:13]}  Qxc5 {[%clk 0:02:21]} 18. Bxc5 {[%clk 0:02:14]}  Rd1 {[%clk 0:02:18]} 19. e5 {[%clk 0:02:06]}  Nd5 {[%clk 0:02:13]} 20. Ba3 {[%clk 0:01:42]}  Nxc3 {[%clk 0:02:08]} 21. Bb2 {[%clk 0:01:42]}  Nxb1 {[%clk 0:02:06]} 22. Kf2 {[%clk 0:01:37]}  Rbd8 {[%clk 0:01:45]} 23. Be2 {[%clk 0:01:36]}  Bf8 {[%clk 0:01:43]} 24. Bxd1 {[%clk 0:01:31]}  Rxd1 {[%clk 0:01:43]} 25. Ke2 {[%clk 0:01:30]}  Rh1 {[%clk 0:01:41]} 26. a4 {[%clk 0:01:13]}  a5 {[%clk 0:01:39]} 27. h4 {[%clk 0:01:09]}  Nb4 {[%clk 0:01:35]} 28. Bd4 {[%clk 0:01:01]}  Nc2 {[%clk 0:01:32]} 29. Ra2 {[%clk 0:01:00]}  Nxd4+ {[%clk 0:01:30]} 30. Nxd4 {[%clk 0:00:54]}  Nc3+ {[%clk 0:01:31]} 0-1